{"text_format":"1","workbook":"xlsx","n_sheets":1,"sheets":["FICHA"],"not_rendered":{"charts":0,"images":1,"macros":1,"external_links":0,"defined_names":26,"comments":0,"pivot_tables":0},"unopened":[],"bounds":{"document_bytes":16777216,"sheet_cells":100000,"rows_first":2000,"rows_last":500,"rows_between":2000,"halvings":0,"cell_chars":16384,"cell_head_chars":4096},"cells_cut":0,"cells_raw":0,"read":"whole","date_system":"1900"}

{"sheet":"FICHA","index":0,"n_rows":409,"n_cols":5,"rows_kept":409,"cut":false,"hidden":false,"merged":[[398,1,398,4],[406,1,406,4],[407,1,407,4],[408,1,408,4],[401,1,401,4],[402,1,402,4],[403,1,403,4],[404,1,404,4],[405,1,405,4]]}
[]
[null,"Nº Expediente Gestiona: (a cumplimentar en caso de que se conozca)"]
[null,"AYUNTAMIENTO DE TOTANA.\nCálculo de TASA e ICIO de DECLARACIONES RESPONSABLES"]
[]
[null,"ICIO",null,null,"+"]
[null,"Uso","Modulo TASA","Modulo ICIO","Medición"]
[null,"Demoliciones"]
[null,"Demolición de edificio exento (m²)",29.82,9]
[null,"Demolición de edificio entre medianeras (m²)",37.58,10]
[null,"Arquitectura residencial"]
[null,"Viviendas Unifamiliares"]
[null,"Vivienda aislada (m²)",472.46,400]
[null,"Vivienda en hilera (m²)",418.41,370]
[null,"Usos vinculados. Garajes, trasteros, almacenes...(m²)",225.61,200]
[null,"Viviendas Plurifamiliares"]
[null,"Vivienda en bloque aislado (m²)",384.93,330]
[null,"Vivienda en manzana cerrada (m²)",371.66,320]
[null,"Usos complementarios. Garajes, trasteros, almacenes...(m²)",203.37,175]
[null,"Oficinas, sin decoración ni instalaciones especiales (m²)",265.81,225]
[null,"Locales diáfanos en estructura, sin acabados (m²)",152.47,130]
[null,"Red-Rehabilitaciones, ampliaciones, reformas y restauraciones"]
[null,"Adecuación o adaptación de local en estructura, incluso nueva fachada."]
[null,"Local muy compartimentado y de calidad alta: coeficiente 1’20 (m²)",{"$f":"ROUND(271.41*1.2,2)","v":325.69},240]
[null,"Local estándar: coeficiente 1’00 (m²)",{"$f":"ROUND(271.41*1,2)","v":271.41000000000003},240]
[null,"Local de baja compartimentación y calidad básica: coeficiente 0’80 (m²)",{"$f":"ROUND(271.41*0.8,2)","v":217.13},240]
[null,"Adecuación o adaptación de local en estructura, manteniendo la fachada."]
[null,"Local muy compartimentado y de calidad alta: coeficiente 1’20 (m²)",{"$f":"ROUND(250.37*1.2,2)","v":300.44},220]
[null,"Local estándar: coeficiente 1’00 (m²)",{"$f":"ROUND(250.37*1,2)","v":250.37},220]
[null,"Local de baja compartimentación y calidad básica: coeficiente 0’80 (m²)",{"$f":"ROUND(250.37*0.8,2)","v":200.3},220]
[null,"Elevación o ampliación de planta, uso residencial (m²)",413.18,350]
[null,"Reforma o rehabilitación de viviendas, conservando únicamente la cimentación y estructura (m²)",311.61,265]
[null,"Reforma o rehabilitación de viviendas, conservando la cimentación, estructura y fachadas (m²)",283.2,240]
[null,"Reforma o rehabilitación de viviendas, conservando la cimentación, estructura, fachadas y cubierta (m²)",249.77,210]
[null,"Sustitución de cubierta y forjado (m²)",149.38,130]
[null,"Sustitución de cubierta (m²)",78.930000000000007,65]
[null,"Rehabilitación de fachadas, con sustitución de carpinterías y revestimientos (m²)",129.38,115]
[null,"Rehabilitación de fachadas, tratamiento superficial (m²)",63.55,55]
[null,"Arquitectura no residencial"]
[null,"Uso Oficinas"]
[null,"Oficinas (m²)",492.07,410]
[null,"Uso Comercial"]
[null,"Comercio (m²)",447.61,390]
[null,"Uso Industrial y Agropecuario"]
[null,"Nave industrial de altura > 6m (m²)",202.11,180]
[null,"Nave industrial de altura > 4,5m y <= 6m (m²)",171.79,{"$f":"D44*0.85","v":153}]
[null,"Nave industrial de altura <= 4,5m (m²)",141.47999999999999,{"$f":"D44*0.7","v":125.99999999999999}]
[null,"Edificios industriales diáfanos en altura (m²)",364.35,330]
[null,"Cobertizos o naves sin cerramientos (m²)",117.4,100]
[null,"Nave ganadera/agrícola (m²)",133.15,{"$f":"C49","v":133.15}]
[null,"Balsas y pantanos de tierra revestidos de butilo, EPDM, PAD (€/m3) de capacidad < =10.000 m3 (m³)",3,3]
[null,"Balsas y pantanos de tierra revestidos de butilo, EPDM, PAD (€/m3) de capacidad > 10.000 m3 y <= 30.000 m3 (m³)",2.6,2.6]
[null,"Balsas y pantanos de tierra revestidos de butilo, EPDM, PAD (€/m3) de capacidad > 30.000 m3 y <= 60.000 m3 (m³)",2.2999999999999998,2.2999999999999998]
[null,"Balsas y pantanos de tierra revestidos de butilo, EPDM, PAD (€/m3) de capacidad > 60.000 m3 (m³)",2.1,2.1]
[null,"Balsa de obra de fábrica (€/m3) (m³)",25,25]
[null,"Uso Garaje"]
[null,"Garajes en planta baja o en altura (m²)",183.75,155]
[null,"Garajes en semisótano o primer sótano (m²)",232.46,200]
[null,"Garajes en segundo o tercer sótano (m²)",266.98,230]
[null,"Uso Hostelería"]
[null,"Hostales, pensiones (m²)",439.89,365]
[null,"Hoteles, aparta hoteles, moteles (m²)",608.5,515]
[null,"Residencias tercera edad (m²)",480.83,405]
[null,"Restaurantes (m²)",541.52,465]
[null,"Cafeterías (m²)",444.36,385]
[null,"Edificaciones de servicio camping (m²)",351.74,310]
[null,"Uso Deportivo"]
[null,"Instalación polideportivo cubierto (m²)",506.22,450]
[null,"Instalación piscina cubierta (m²)",535.91,490]
[null,"Instalación deportiva al aire libre (m²)",60.52,50]
[null,"Piscinas al aire libre (m²)",264.31,255]
[null,"Vestuarios y servicios de apoyo al uso deportivo (m²)",413.09,365]
[null,"Instalación deportiva graderíos descubiertos (m²)",149.01,140]
[null,"Instalación deportiva graderíos cubiertos (m²)",225.99,190]
[null,"Uso Espectáculos"]
[null,"Discotecas, casinos culturales, cines (m²)",496.31,395]
[null,"Salas de fiestas, casinos de juego, teatros, auditorios, palacios de congresos (m²)",649.53,560]
[null,"Uso Docente"]
[null,"Centros universitarios, centros de investigación, museos, bibliotecas (m²)",605.09,520]
[null,"Academias, guarderías, colegios, institutos, salas de exposiciones (m²)",422.93,350]
[null,"Uso Sanitario"]
[null,"Hospitales, clínicas, grandes centros sanitarios (m²)",821.24,700]
[null,"Ambulatorios, centros médicos, laboratorios, consultorios, centros de salud (m²)",595.72,460]
[null,"Dispensarios, botiquines (m²)",486.25,380]
[null,"Uso Religioso"]
[null,"Centros de culto, iglesias, sinagogas, mezquitas (m²)",681.92,610]
[null,"Capillas, ermitas (m²)",493.8,425]
[null,"Seminarios, conventos, centros parroquiales (m²)",450.9,390]
[null,"Uso Funerario"]
[null,"Nichos sobre rasante (m²)",199.36,160]
[null,"Nichos bajo rasante (m²)",253.16,215]
[null,"Panteón familiar (m²)",605.76,450]
[null,"Tanatorio, crematorio (m²)",489.97,390]
[null,"Urbanización de terrenos y parcelas."]
[null,"Valla metálica de postes y malla galvanizada (m)",6.5,{"$f":"C94","v":6.5}]
[null,"Valla de dos metros compuesta por parte ciega de altura de un bloque de hormigón y resto de malla metálica (m)",25,25]
[null,"Valla de dos metros compuesta por parte ciega de altura de dos bloques de hormigón y resto de malla metálica (m)",30,30]
[null,"Valla de dos metros compuesta por parte ciega de altura de tres bloques de hormigón y resto de malla metálica (m)",35,35]
[null,"Valla de dos metros compuesta por parte ciega de altura de cuatro bloques de hormigón y resto de malla metálica (m)",42,42]
[null,"Valla de dos metros compuesta por parte ciega de altura de cinco bloques de hormigón y resto de malla metálica (m)",47,47]
[null,"Valla de cerramiento perimetral, cimentación, muro de base, verja metálica, totalmente terminada incluso parte proporcional de puertas de acceso para uso residencial. (m)",103.28,103.28]
[null,"Superficie tratada de parcela, incluso parte proporcional de infraestructuras interiores y acometidas de servicios urbanísticos. (m2)",35.659999999999997,30]
[null,"Jardín urbano, incluyendo todos los servicios urbanísticos, pavimentaciones, plantaciones y mobiliario urbano, medido sobre superficie entera del jardín. (m²)",52.97,45]
[null,"Base imponible mínima según módulos",null,null,{"$f":"calculoBaseImponible(mediciones,-1)","v":0}]
[null,"Presupuesto de ejecución material que acompaña al título habilitante solicitado"]
[null,"Base imponible",null,null,{"$f":"calculaMayor(E103:E104)","v":0}]
[null,"Cuota tributaria",null,null,{"$f":"calculoCuotaTributaria((E107,E109:E113))","v":3.2000001519918442E-2}]
[null,"Instalaciones y construcciones en general",null,3.2000000000000001E-2,{"$f":"IF(E108=\"+\",\"\",\"SI\")","v":"SI"}]
[null,"Otras"]
[null,"Viviendas que cuenten con calificación definitiva de Viviendas de Protección Oficial",null,0.03]
[null,"Obras en Polígono Industrial",null,0.02]
[null,"Obras de rehabilitación de fachadas",null,0.02]
[null,"Obras de construcción de pantanos",null,0.02]
[null,"Instalaciones y construcciones acogidas al convenio de regularización de los sectores ganaderos ovino, caprino y porcino",null,5.0000000000000001E-3]
[null,"Cuota resultante ICIO",null,null,{"$f":"IF(E150=\"SI\",0,E105*E106)","v":0}]
[null,"Bonificaciones y reducciones (Seguón / Art. 8 de la vigente ordenanza fiscal)"]
[null,"a) Construcciones, instalaciones y obras declaradas de especial interés.\nLa bonificación habrá de ser solicitada por el sujeto pasivo",null,{"$f":"calculaMayor((D117,D124,D128,D134))","v":0}]
[null,"Por motivos de CREACIÓN DE EMPLEO",null,{"$f":"bonificacionPorCreacionDeEmpleo(D118,D121)","v":0}]
[null,"Nueva creación",null,{"$f":"IF(SUM(D119:D120)>0.95,0.95,SUM(D119:D120))","v":0}]
[null,"Número de trabajadores indefinidos",null,{"$f":"bonificacionTrabajadoresIndefinidos(E119)","v":0}]
[null,"Número de trabajadores (no necesariamente indefinidos)\nQuienes se acojan a esta modalidad deberán acreditar que han mantenido a lo largo de su primer año de existencia una plantilla media de 10 trabajadores, de lo contrario reintegraran el importe de la bonificación concedida.",null,{"$f":"bonificacionTrabajadoresTemporales(E120)","v":0}]
[null,"Ampliación o traslado",null,{"$f":"IF(SUM(D122:D123)>0.95,0.95,SUM(D122:D123))","v":0}]
[null,"Número de trabajadores con que se incrementa la plantilla",null,{"$f":"bonificacionTrabajadoresIndefinidos(E122)","v":0}]
[null,"Número de trabajadores que pasan de temporales a indefinidos",null,{"$f":"bonificacionTrabajadoresTransformados(E123)","v":0}]
[null,"Por motivos de CONSERVACIÓN DEL PATRIMONIO HISTÓRICO - ARTÍSTICO",null,{"$f":"bonificacionConservacionPatrimonio(E125:E127,-1)","v":0}]
[null,"Por ubicarse en inmuebles catalogados Por el planeamiento general",null,{"$f":"IF(E125=\"si\",50%,0)","v":0}]
[null,"Por desarrollar actividades dirigidas a la promoción, difusión, y/o conservación del patrimonio histórico - artístico o cultural (museos, bibliotecas, salas de exposiciones, galerías de arte, teatros, etc...)",null,{"$f":"IF(E126=\"si\",50%,0)","v":0}]
[null,"Todas aquellas cuyo objeto principal sea la creación, instalación, ampliación y/o modernización de Sedes Sociales destinadas fundamentalmente a la conservación de tradiciones populares y/o religiosas.",null,{"$f":"IF(E127=\"si\",50%,0)","v":0}]
[null,"Por motivos de CARÁCTER SOCIAL",null,{"$f":"bonificacionSocial(E129:E133,-1)","v":0}]
[null,"Por estar constituidas total o parcialmente (50% de sus socios) por personas pertenecientes a colectivos desfavorecidos: disminuidos físicos, psíquicos o sensoriales, inmigrantes, jóvenes menores de 25 años, mujeres con cargas familiares, desempleados mayores de 45 años con mas de un año de antigüedad en la demandada de empleo",null,{"$f":"IF(E129=\"si\",50%,0)","v":0}]
[null,"Por contemplar en su plantilla al menos un 70% de trabajadores pertenecientes a los colectivos de referencia.",null,{"$f":"IF(E130=\"si\",50%,0)","v":0}]
[null,"Por desarrollar una actividad destinada a la prestación de servicios a los colectivos antedichos (guarderías laborales, centros de acogida, centros de desintoxicación, etc.)",null,{"$f":"IF(E131=\"si\",50%,0)","v":0}]
[null,"ONGS, que desarrollen su actividad en el municipio de Totana.",null,{"$f":"IF(E132=\"si\",50%,0)","v":0}]
[null,"Por el incremento de plazas de aparcamiento respecto del número de plazas mínimo exigible en el planeamiento.",null,{"$f":"IF(E133=\"si\",95%,0)","v":0}]
[null,"Por declaración por el Pleno, al estimar la concurrencia de especiales circunstancias que justifiquen tal declaración.",null,{"$f":"D135","v":0}]
[null,"Porcentaje bonificado en acuerdo de pleno (máximo 0,95)",null,{"$f":"E135","v":0}]
[null,"b) Construcciones, instalaciones u obras en las que se incorporen sistemas para el aprovechamiento térmico o eléctrico de la energía solar para autoconsumo. \nLa aplicación de esta bonificación estará condicionada a que las instalaciones para producción de calor incluyan colectores que dispongan de la correspondiente homologación de la Administración competente. ",null,{"$f":"IF(E136=\"SI\",0.75,0)","v":0}]
[null,"c) Acondicionamiento de las construcciones ya existentes que favorezcan las condiciones de acceso y habitabilidad de los discapacitados.",null,{"$f":"IF(E137=\"SI\",0.9,0)","v":0}]
[null,"d) Construcciones, instalaciones u obras referentes a las viviendas de protección oficial.",null,{"$f":"IF(E138=\"SI\",0.5,0)","v":0}]
[null,"Cuota bonificada (%)",null,null,{"$f":"(calculaMayor((D116,D136,D137)))+((1-calculaMayor((D116,D136,D137)))*D138)","v":0}]
[null,"Cuota bonificada (€)",null,null,{"$f":"E114*E139","v":0}]
[null,"Cuota resultante ICIO - Cuota bonificada",null,null,{"$f":"E114-E140","v":0}]
[]
[null,"TASA"]
[null,"Títulos habilitantes de obras",null,{"$f":"SUM(D149,D150)","v":0},"+"]
[null,"Base imponible (Para calcularla se debe completar el apartado correspondiente a ICIO)",null,null,{"$f":"IF(calculoBaseImponible(mediciones,-2)>=E104,calculoBaseImponible(mediciones,-2),E104)","v":0}]
[null,"Obras en Polígono Industrial, de rehabilitación de fachadas, o de construcción de pantanos",null,null,"-"]
[null,"Licencias Urbanísticas",null,{"$f":"IF(E147=\"SI\",calculaTasaLicencia(E$145,E$146),0)","v":0}]
[null,"Declaración Responsable",null,{"$f":"IF(E148=\"SI\",calculaTasaComunicacion(E$145,E$146),0)","v":0},"SI"]
[null,"Nueva tramitación (incluye ampliaciones de licencia)",null,{"$f":"IF(E149=\"SI\",SUM(D147:D148),0)","v":0},{"$f":"IF(E150<>\"SI\",\"SI\",\"\")","v":"SI"}]
[null,"Expedientes en tramitación (cambios de titularidad y prórrogas)",null,{"$f":"IF(E150=\"si\",IF(E147=\"si\",D147*0.25,D148*0.75),0)","v":0},"-"]
[null,"Títulos habilitantes de actividad",null,{"$f":"SUM(D153:D154)","v":0}]
[null,"Tipo de autorización",null,null,{"$f":"E151","v":0}]
[null,"Autorizaciones en general",null,{"$f":"IF(E153=\"SI\",SUM(D156:D299),0)","v":0},{"$f":"IF(E154<>\"SI\",\"SI\",\"\")","v":"SI"}]
[null,"Cambios de titularidad",null,{"$f":"IF(E154=\"SI\",SUM(D156:D299)/2,0)","v":0}]
[null,"Tipo de actividad",null,null,{"$f":"E151","v":0}]
[null,"Actividades industriales",null,{"$f":"calculaTasaActividades(E156,750,0.5,6.5,E157:E158)","v":0}]
[null,"Superficie construida (m²)"]
[null,"Kilovatios"]
[null,"Explotaciones extractivas",null,{"$f":"calculaTasaActividades(E159,1000,0.1,6.5,E160:E161,15000,15000)","v":0}]
[null,"Superficie construida (m²)"]
[null,"Kilovatios"]
[null,"Actividades industriales energéticas"]
[null,"Extracción o captación de gas, así como plantas de producción y distribución, así como su almacenamiento",null,{"$f":"calculaTasaActividades(E163,3000,2.25,6.5,E164:E165)","v":0}]
[null,"Superficie construida (m²)"]
[null,"Kilovatios"]
[null,"Extracción y refino de combustibles líquidos, así como de su almacenamiento",null,{"$f":"calculaTasaActividades(E166,3000,2.25,6.5,E167:E168)","v":0}]
[null,"Superficie construida (m²)"]
[null,"Kilovatios"]
[null,"Centrales térmicas, plantas de cogeneración y otras instalaciones industriales para la producción de energía eléctrica, vapor y agua caliente",null,{"$f":"calculaTasaActividades(E169,3000,2.25,1,E170:E171,,5000,10000)","v":0}]
[null,"Superficie construida (m²)"]
[null,"Kilovatios producidos"]
[null,"Plantas de transformación de energía solar y energía eólica hasta 20 KW",null,{"$f":"calculaTasaActividades(E172,150,5,0,E173)","v":0}]
[null,"Kilovatios producidos"]
[null,"Plantas de transformación de energía solar y energía eólica a partir de 100 KW",null,{"$f":"calculaTasaActividades(E174,320,4.25,0,E175)","v":0}]
[null,"Kilovatios producidos"]
[null,"Plantas de transformación de energía solar y energía eólica a partir de 100 KW",null,{"$f":"calculaTasaActividades(E176,750,1,0,E177)","v":0}]
[null,"Kilovatios producidos"]
[null,"Talleres"]
[null,"Talleres artesanos",null,{"$f":"calculaTasaActividades(E179,150,0.5,0,E180:E180)","v":0}]
[null,"Superficie construida (m²)"]
[null,"Talleres auxiliares de la construcción: ferrallista, albañilería, escayolistas, cristalería, fontanería, calefacción y aire acondicionado, electricidad, etc. ",null,{"$f":"calculaTasaActividades(E181,320,0.5,1.5,E182:E183)","v":0}]
[null,"Superficie construida (m²)"]
[null,"Kilovatios"]
[null,"Talleres de carpintería",null,{"$f":"calculaTasaActividades(E184,320,1,2.5,E185:E186)","v":0}]
[null,"Superficie construida (m²)"]
[null,"Kilovatios"]
[null,"Talleres de relojería, orfebrería, platería, joyería, bisutería, óptica, ortopedia y prótesis",null,{"$f":"calculaTasaActividades(E187,150,0.5,1.5,E188:E189)","v":0}]
[null,"Superficie construida (m²)"]
[null,"Kilovatios"]
[null,"Talleres de confección, sastrería, peletería, géneros de punto, sombrerería y guarnicionería",null,{"$f":"calculaTasaActividades(E190,150,0.5,1.5,E191:E192)","v":0}]
[null,"Superficie construida (m²)"]
[null,"Kilovatios"]
[null,"Talleres de reparación de electrodomésticos, radio-telefonía, televisión, maquinaria de oficina y maquinas de coser",null,{"$f":"calculaTasaActividades(E193,150,0.5,1.5,E194:E195)","v":0}]
[null,"Superficie construida (m²)"]
[null,"Kilovatios"]
[null,"Talleres de reparación de vehículos y desguace",null,{"$f":"calculaTasaActividades(E196,320,1.5,2.5,E197:E198)","v":0}]
[null,"Superficie construida (m²)"]
[null,"Kilovatios"]
[null,"Talleres de reparación de maquinaria industrial",null,{"$f":"calculaTasaActividades(E199,320,1,2.5,E200:E201)","v":0}]
[null,"Superficie construida (m²)"]
[null,"Kilovatios"]
[null,"Imprentas",null,{"$f":"calculaTasaActividades(E202,320,1,2.5,E203:E204)","v":0}]
[null,"Superficie construida (m²)"]
[null,"Kilovatios"]
[null,"Recuperación, tratamientos y almacenamiento de residuos y subproductos"]
[null,"Vertederos y Depósitos de lodos",null,{"$f":"calculaTasaActividades(E206,750,0.75,0,E207)","v":0}]
[null,"Superficie construida (m²)"]
[null,"Almacenamiento, plantas de tratamientos de residuos sólidos urbanos, industriales, tóxicos y peligrosos, agropecuarios y hospitalarios",null,{"$f":"calculaTasaActividades(E208,750,0.5,2.35,E209:E210)","v":0}]
[null,"Superficie construida (m²)"]
[null,"Superficie construida (m²)"]
[null,"Estaciones depuradoras y desalinizadoras de aguas",null,{"$f":"calculaTasaActividades(E211,750,1.5,2.35,E212:E213)","v":0}]
[null,"Superficie construida (m²)"]
[null,"Kilovatios"]
[null,"Depósitos de lodos",null,{"$f":"calculaTasaActividades(E214,750,3.5,0,E215)","v":0}]
[null,"Superficie construida (m²)"]
[null,"Otras infraestructuras"]
[null,"Explotación de acuíferos",null,{"$f":"calculaTasaActividades(E217,750,3.25,0,E218)","v":0}]
[null,"Kilovatios"]
[null,"Instalación y ampliación de aeropuertos, aeródromos y helipuertos de uso público o particular, incluyendo las pistas para despegue y aterrizaje de ultraligeros",null,{"$f":"calculaTasaActividades(E219,750,0.1,4.25,E220:E221)","v":0}]
[null,"Superficie construida (m²)"]
[null,"Kilovatios"]
[null,"Campos de golf",null,{"$f":"calculaTasaActividades(E222,750,0.9,12.5,E223:E224,25000,25000)","v":0}]
[null,"Superficie construida (m²)"]
[null,"Kilovatios"]
[null,"Pistas y circuitos de velocidad",null,{"$f":"calculaTasaActividades(E225,750,0.9,0,E226:E226)","v":0}]
[null,"Superficie construida (m²)"]
[null,"Instalaciones para la explotación y envasado de agua de manantial",null,{"$f":"calculaTasaActividades(E227,750,1.25,1.35,E228:E229)","v":0}]
[null,"Superficie construida (m²)"]
[null,"Kilovatios"]
[null,"Estaciones de servicio y similares",null,{"$f":"calculaTasaActividades(E230,750,1.75,1.25,E231:E232)","v":0}]
[null,"Superficie construida (m²)"]
[null,"Kilovatios"]
[null,"Actividades ganaderas"]
[null,"Explotación de ganado bovino",null,{"$f":"calculaTasaActividades(E234,320,2,0,E235)","v":0}]
[null,"Nº de cabezas"]
[null,"Explotación de ganado ovino y caprino",null,{"$f":"calculaTasaActividades(E236,320,0.5,0,E237)","v":0}]
[null,"Nº de cabezas"]
[null,"Explotación de ganado equino",null,{"$f":"calculaTasaActividades(E238,320,2,0,E239)","v":0}]
[null,"Nº de cabezas"]
[null,"Explotación de ganado porcino",null,{"$f":"calculaTasaActividades(E240,320,2,0,E241)","v":0}]
[null,"Nº de UGM"]
[null,"Avicultura",null,{"$f":"calculaTasaActividades(E242,320,0.03,0,E243)","v":0}]
[null,"Nº de cabezas"]
[null,"Cunicultura",null,{"$f":"calculaTasaActividades(E244,320,0.3,0,E245)","v":0}]
[null,"Nº de cabezas"]
[null,"Apicultura",null,{"$f":"calculaTasaActividades(E246,150,0.15,0,E247)","v":0}]
[null,"Nº de colmenas"]
[null,"Cría o guarda de perros",null,{"$f":"calculaTasaActividades(E248,320,0.5,0,E249)","v":0}]
[null,"Nº de cabezas"]
[null,"Otras explotaciones de cría de animales en cautividad",null,{"$f":"calculaTasaActividades(E250,320,0.5,0,E251)","v":0}]
[null,"Nº de cabezas"]
[null,"Explotaciones domésticas",null,{"$f":"calculaTasaActividades(E252,150,0,0)","v":0}]
[null,"Comercio al por mayor",null,{"$f":"calculaTasaActividades(E253,320,0.5,1.5,E254:E255)","v":0}]
[null,"Superficie construida (m²)"]
[null,"Kilovatios"]
[null,"Comercio al por menor"]
[null,"Comercio al por menor cuya superficie no sea superior a 200 m2 o cuya potencia instalada no sea superior a 10 KW. Excepto de alimentación.",null,{"$f":"calculaTasaActividades(E257,150,0,0)","v":0}]
[null,"Comercio al por menor cuya superficie sea superior a 200 m2 o cuya potencia instalada sea superior a 10 KW. Excepto de alimentación",null,{"$f":"calculaTasaActividades(E258,150,2,3,E259:E260)","v":0}]
[null,"Superficie construida a partir de 200 (m²)"]
[null,"Kilovatios"]
[null,"Comercio de abonos y productos fitosanitarios así como su almacenamiento",null,{"$f":"calculaTasaActividades(E261,320,0.5,1.5,E262:E263)","v":0}]
[null,"Superficie construida (m²)"]
[null,"Kilovatios"]
[null,"Actividades de almacenamiento"]
[null,"Almacenamiento",null,{"$f":"calculaTasaActividades(E265,320,0.5,1.5,E266:E267)","v":0}]
[null,"Superficie construida (m²)"]
[null,"Kilovatios"]
[null,"Almacenamiento anexo a una actividad",null,{"$f":"calculaTasaActividades(E268,0,0.25,1,E269:E270)","v":0}]
[null,"Superficie construida (m²)"]
[null,"Kilovatios"]
[null,"Servicios de alimentación"]
[null,"Restaurantes, cafeterías, cafés y bares (sin música)",null,{"$f":"calculaTasaActividades(E272,320,1,2,E273:E274)","v":0}]
[null,"Superficie construida (m²)"]
[null,"Kilovatios"]
[null,"Restaurantes, cafeterías, cafés y bares (con música)",null,{"$f":"calculaTasaActividades(E275,320,2,4,E276:E277)","v":0}]
[null,"Superficie construida (m²)"]
[null,"Kilovatios"]
[null,"Comercio al por menor cuya superficie no sea superior a 200 m² o cuya potencia instalada no sea superior a 10 KW., sin obrador",null,{"$f":"calculaTasaActividades(E278,150,0,0)","v":0}]
[null,"Comercio al por menor cuya superficie no sea superior a 200 m² o cuya potencia instalada no sea superior a 10 KW., con obrador",null,{"$f":"calculaTasaActividades(E279,320,0,0)","v":0}]
[null,"Comercio al por menor cuya superficie sea superior a 200 m² o cuya potencia\ninstalada sea superior a 10 KW",null,{"$f":"calculaTasaActividades(E280,320,2,3,E281:E282)","v":0}]
[null,"Superficie construida (m²)"]
[null,"Kilovatios"]
[null,"Servicios de hospedaje en hoteles, moteles, hostales, pensiones, hoteles/apartamentos, alojamientos turísticos extrahoteleros y similares",null,{"$f":"calculaTasaActividades(E283,750,22,0,E284)","v":0}]
[null,"habitaciones / alojamientos / plazas"]
[null,"Guarda y custodia de vehículos en aparcamientos, parkings o similares",null,{"$f":"calculaTasaActividades(E285,320,15,0,E286)","v":0}]
[null,"vehículos"]
[null,"Agencias de transporte, servicios de mudanzas y transporte de viajeros",null,{"$f":"calculaTasaActividades(E287,320,100,0,E288)","v":0}]
[null,"vehículos"]
[null,"Instituciones financieras, seguros e inmobiliarias"]
[null,"Bancos, cajas de ahorros y otras instituciones financieras",null,{"$f":"calculaTasaActividades(E290,2200,5,0,E291)","v":0}]
[null,"Superficie construida (m²)"]
[null,"Agencias de seguros y actividades inmobiliarias",null,{"$f":"calculaTasaActividades(E292,320,3.5,0,E293)","v":0}]
[null,"Superficie construida (m²)"]
[null,"Servicios prestados y alquileres"]
[null,"Servicios técnicos de ingeniería, arquitectura, urbanismo, servicios financieros y contables, servicios de publicidad, relaciones públicas y similares, empresas de estudios de mercado, locutorios y oficinas en general",null,{"$f":"calculaTasaActividades(E295,320,3,0,E296)","v":0}]
[null,"Superficie construida (m²)"]
[null,"Alquiler de bienes muebles, como maquinaria, equipos automóviles, y otros medios de transporte, alquiler de bienes de consumo, de películas de video y otros análogos",null,{"$f":"calculaTasaActividades(E297,320,3.25,0,E298)","v":0}]
[null,"Superficie construida (m²)"]
[null,"Otros servicios"]
[null,"Guarderías, colegios mayores, enseñanza de conducción de vehículos terrestres, acuáticos, aeronáuticos y otras actividades de enseñanza, como idiomas, corte y confección, mecanografía, preparación de exámenes, oposiciones y similares",null,{"$f":"calculaTasaActividades(E300,320,4,0,E301)","v":0}]
[null,"Superficie construida (m²)"]
[null,"Sanidad y servicios veterinarios, como hospitales, clínicas, consultorios médicos, balnearios, clínicas de urgencia, centros de socorro, servicios de naturopatía y acupuntura, consultas y clínicas de estomatología y odontología, oficina de farmacia y otros servicios sanitarios",null,{"$f":"calculaTasaActividades(E302,750,3,3,E303:E304)","v":0}]
[null,"Superficie construida (m²)"]
[null,"Kilovatios"]
[null,"Teatros y otros servicios recreativos y culturales, como producción, distribución y exhibición de películas cinematográficas y videos",null,{"$f":"calculaTasaActividades(E305,750,1.5,0,E306)","v":0}]
[null,"Superficie construida (m²)"]
[null,"Servicios de radiodifusión, televisión y servicios de enlace y transmisión de señales de televisión",null,{"$f":"calculaTasaActividades(E307,750,3,3,E308:E309)","v":0}]
[null,"Superficie construida (m²)"]
[null,"Kilovatios"]
[null,"Instalación de antenas y demás servicios de telecomunicaciones",null,{"$f":"calculaTasaActividades(E310,2800,0,0)","v":0}]
[null,"Instalaciones deportivas",null,{"$f":"calculaTasaActividades(E311,320,1,0,E312)","v":0}]
[null,"Superficie construida (m²)"]
[null,"Salas de baile, discotecas y similares",null,{"$f":"calculaTasaActividades(E313,750,5,4,E314:E315)","v":0}]
[null,"Superficie construida (m²)"]
[null,"Kilovatios"]
[null,"Casinos de juego, Bingos y Salones de Juego",null,{"$f":"calculaTasaActividades(E316,2200,10,4,E317:E318,25000,25000)","v":0}]
[null,"Superficie construida (m²)"]
[null,"Kilovatios"]
[null,"Salones Recreativos",null,{"$f":"calculaTasaActividades(E319,750,3,0,E320)","v":0}]
[null,"Superficie construida (m²)"]
[null,"Servicios personales como, salones de peluquería e institutos de belleza y gabinete de estética",null,{"$f":"calculaTasaActividades(E321,150,1,0,E322)","v":0}]
[null,"Superficie construida (m²)"]
[null,"Servicios personales como, lavanderías, tintorerías",null,{"$f":"calculaTasaActividades(E323,320,1,1.5,E324:E325)","v":0}]
[null,"Superficie construida (m²)"]
[null,"Kilovatios"]
[null,"Servicios fotográficos, máquinas automáticas fotográficas y servicios de fotocopias. Agencias de prestación de servicios domésticos y otros servicios personales",null,{"$f":"calculaTasaActividades(E326,150,1,0,E327)","v":0}]
[null,"Superficie construida (m²)"]
[null,"Parque de recreo, ferias y otros servicios relacionados con el espectáculo, organización de congresos, parque o recintos feriales",null,{"$f":"calculaTasaActividades(E328,750,2.5,0,E329)","v":0}]
[null,"Superficie construida (m²)"]
[null,"Servicios de lavado y engrase de vehículos y similares",null,{"$f":"calculaTasaActividades(E330,420,1.75,0,E331)","v":0}]
[null,"Superficie construida (m²)"]
[null,"Instrumentos urbanísticos de planeamiento y gestión de iniciativa particular",null,{"$f":"D334+D338+D342+D346+D350+D354+D358+D362+D366+D370","v":0}]
[null,"Instrumentos de planeamiento"]
[null,"Planes Parciales y Planes Especiales",null,{"$f":"calculaPlanesParciales(E335,E336,E337)","v":0}]
[null,"Aprovechamiento de referencia (m2t/m2s)"]
[null,"Superficie (m2)"]
[null,"Coeficiente reductor por uso industrial o actividades económicas"]
[null,"Estudios de detalle",null,{"$f":"calculaEstudiosDetalle(E339,E340)","v":0}]
[null,"Superficie (m2)"]
[null,"Coeficiente reductor por uso industrial o actividades económicas"]
[null,"Instrumentos de gestión"]
[null,"Delimitación de Unidades de Ejecución",null,{"$f":"calculaTasaGestion(E343,E344,E345,0.06,303)","v":0}]
[null,"Superficie (m2)"]
[null,"Coeficiente reductor por uso industrial o actividades económicas"]
[null,"Se trata de una modificación"]
[null,"Establicimiento o modificación del sistema de actuación",null,{"$f":"calculaTasaGestion(E347,E348,E349,0.06,303)","v":0}]
[null,"Superficie (m2)"]
[null,"Coeficiente reductor por uso industrial o actividades económicas"]
[null,"Se trata de una modificación"]
[null,"Proyecto de Reparcelación para la gestión de unidades integradas",null,{"$f":"calculaTasaGestion(E351,E352,E353,0.16,716)","v":0}]
[null,"Superficie (m2)"]
[null,"Coeficiente reductor por uso industrial o actividades económicas"]
[null,"Se trata de una modificación"]
[null,"Constitución de Junta de compensación",null,{"$f":"calculaTasaGestion(E355,E356,E357,0.06,716)","v":0}]
[null,"Superficie (m2)"]
[null,"Coeficiente reductor por uso industrial o actividades económicas"]
[null,"Se trata de una modificación"]
[null,"Constitución de Asociación Administrativa de Cooperación",null,{"$f":"calculaTasaGestion(E359,E360,E361,0.06,397)","v":0}]
[null,"Superficie (m2)"]
[null,"Coeficiente reductor por uso industrial o actividades económicas"]
[null,"Se trata de una modificación"]
[null,"Proyecto de Urbanización",null,{"$f":"calculaTasaGestion(E363,E364,E365,0.06,716)","v":0}]
[null,"Superficie (m2)"]
[null,"Coeficiente reductor por uso industrial o actividades económicas"]
[null,"Se trata de una modificación"]
[null,"Expediente de expropiación a favor de particulares",null,{"$f":"calculaTasaGestion(E367,E368,E369,0.03,184)","v":0}]
[null,"Superficie (m2)"]
[null,"Coeficiente reductor por uso industrial o actividades económicas"]
[null,"Se trata de una modificación"]
[null,"Inspección técnica realizada a instancia de particulares",null,{"$f":"80*E371","v":0}]
[null,"Numero de inspecciones"]
[null,"Otros",null,{"$f":"SUM(D373,D376,D379,D381,D383,D385,D387,D390,D392)","v":0}]
[null,"Licencias de primera ocupación solicitadas a instancia de particulares",null,{"$f":"calculaTasaOtros(E374,46.35,E375)","v":0}]
[null,"Nº de licencias (1 Ud. si se deja en blanco o se indica 0)"]
[null,"¿Se trata de una modificación? (NO en caso de no indicar lo contrario)"]
[null,"Licencias de parcelación o segregación solicitadas a instancia de particulares",null,{"$f":"calculaTasaOtros(E377,53.28,E378)","v":0}]
[null,"Nº de porciones a segregar (1 Ud. si se deja en blanco o se indica 0)"]
[null,"¿Se trata de una modificación? (NO en caso de no indicar lo contrario)"]
[null,"Certificaciones urbanísticas",null,{"$f":"calculaTasaOtros(E380,47)","v":0}]
[null,"Nº de certificados  (1 Ud. si se deja en blanco o se indica 0)"]
[null,"Licencias de segunda ocupación",null,{"$f":"calculaTasaOtros(E382,49)","v":0}]
[null,"Nº de licencias (1 Ud. si se deja en blanco o se indica 0)"]
[null,"Declaraciones de interés público y declaraciones de obras e instalaciones al servicio de una obra pública",null,{"$f":"calculaTasaOtros(E384,58)","v":0}]
[null,"Nº de declaraciones de interés público (1 Ud. si se deja en blanco o se indica 0)"]
[null,"Tira de cuerdas",null,{"$f":"calculaTasaOtros(E386,28)","v":0}]
[null,"Nº de tiras de cuerdas (1 Ud. si se deja en blanco o se indica 0)"]
[null,"Expedientes de ruina",null,{"$f":"calculaTasaRuina(E388,E389,1555,210)","v":0}]
[null,"Nº de expedientes de ruina (1 Ud. si se deja en blanco o se indica 0)"]
[null,"¿Con contradicción? (NO en caso de no indicar lo contrario)"]
[null,"Ordenes de ejecución",null,{"$f":"calculaTasaOtros(E391,158)","v":0}]
[null,"Nº de ordenes de ejecución (1 Ud. si se deja en blanco o se indica 0)"]
[null,"Declaración de obra nueva ",null,{"$f":"calculaTasaOtros(E393,100)","v":0}]
[null,"Nº de declaraciones de obra nueva (1 Ud. si se deja en blanco o se indica 0)"]
[null,"Tasa resultante",null,null,{"$f":"D144+D151+D332+D372","v":0}]
[]
[null,"Total liquidación ICIO + TASA",null,null,{"$f":"E141+D144","v":0}]
[]
[null,"FORMA DE PAGO"]
[null,"A través de la Subsede Electrónica de Gestión Tributaria y Recaudación. \nEl acceso a dicha subsede, se ha de realizar a través de la sede electrónica del Ayuntamiento de Totana disponible en el enlace que más abajo se facilita.\nDesde dicha sede electrónica ha de pulsar en  \"Subsede Triburaria\", situado en:\n\"Enlaces de interes -> WEBS DE INTERÉS->Subsede Tributaria\".\nFinalmente desde la subsede tributaria se ha de pulsar en \"Autoliquidación de tasas urbanisticas\", situado en \n\"Información ->Autoliquidaciones->Autoliquidación de tasas urbanísticas\"."]
[null,"SEDE ELECTRÓNICA DEL AYUNTAMIENTO DE TOTANA"]
[]
[null,"INSTRUCCIONES DE USO"]
[null,"1.- Por razonas de fiabilidad, la hoja se encuentra bloqueada."]
[null,"2.- Las únicas celdas en las que se pueden introducir datos se encuentra en la columna denominada medición, situada bajo el escudo de Totana"]
[null,"3.- Para incorporar las mediciones, se han de desplegar los distintos usos hasta localizar el correspondiente. Ello se consigue a través de listas desplegables en las que la opción \"+\", despliega el uso y la opción \"-\", o sin contenido, lo pliega"]
[null,"4.- En caso de plegar el uso para no generar contenido oculto, se eliminan los datos de medición introducida, por lo que para generar contenido el uso ha de encontrarse desplegado y la medición visible"]
[null,"5.- El apartado de bonificaciones, únicamente se debe de cumplimentar si se tienen derecho a ellas."]
[null,"6.- En cualquier caso, las bonificaciones correspondientes al apartado a) han de ser solicitadas con carácter previo"]
[null,"7.- En el apartado correspondiente a la tasa, como en el resto de la hoja, únicamente, se pueden modificar las celdas desprotegidas. A través de ellas, la aplicación realiza las correcciones necesarias en el resto de celdas"]